[Event "Early-Titled-Tuesday-Blitz-March-19-2024"]
[Site "Chess.com"]
[Date "2024.03.19"]
[Round "2"]
[White "GreenPeach24"]
[Black "SamCopeland"]
[Result "0-1"]
[WhiteElo "2555"]
[BlackElo "2369"]
[TimeControl "180+1"]
[EndTime "8:18:17 PDT"]
[Termination "SamCopeland won by checkmate"]

1. e4 {[%clk 0:03:00.9]} 1... c6 {[%clk 0:02:55.8]} 2. d4 {[%clk 0:03:00.2]}
2... d5 {[%clk 0:02:55.1]} 3. exd5 {[%clk 0:03:00.9]} 3... cxd5 {[%clk
0:02:55.2]} 4. Bd3 {[%clk 0:03:01.1]} 4... Nc6 {[%clk 0:02:54.2]} 5. c3 {[%clk
0:03:01.7]} 5... Qc7 {[%clk 0:02:54.1]} 6. h3 {[%clk 0:02:57.3]} 6... e5 {[%clk
0:02:32.8]} 7. dxe5 {[%clk 0:02:56.1]} 7... Nxe5 {[%clk 0:02:31.5]} 8. Bb5+
{[%clk 0:02:55.7]} 8... Nc6 {[%clk 0:02:23.5]} 9. Nf3 {[%clk 0:02:50.2]} 9...
Bd6 {[%clk 0:02:21.5]} 10. O-O {[%clk 0:02:49.9]} 10... Ne7 {[%clk 0:02:20.2]}
11. Nbd2 {[%clk 0:02:26]} 11... O-O {[%clk 0:02:17.1]} 12. Re1 {[%clk
0:02:26.1]} 12... Bf5 {[%clk 0:02:11.7]} 13. Nf1 {[%clk 0:02:25.8]} 13... Rad8
{[%clk 0:02:07.1]} 14. Bd3 {[%clk 0:02:25.4]} 14... Bg6 {[%clk 0:01:56.4]} 15.
Bxg6 {[%clk 0:02:14.2]} 15... Nxg6 {[%clk 0:01:57.3]} 16. Ne3 {[%clk 0:02:11.6]}
16... Nf4 {[%clk 0:01:54.8]} 17. Nf5 {[%clk 0:02:09.9]} 17... Rfe8 {[%clk
0:01:45.1]} 18. Bxf4 {[%clk 0:02:03.7]} 18... Bxf4 {[%clk 0:01:43.9]} 19. Qxd5
{[%clk 0:02:03.8]} 19... Rxe1+ {[%clk 0:01:25.3]} 20. Rxe1 {[%clk 0:02:03]}
20... g6 {[%clk 0:01:25.3]} 21. Qc4 {[%clk 0:01:58.6]} 21... gxf5 {[%clk
0:01:21.9]} 22. Nh4 {[%clk 0:01:42.7]} 22... Qe5 {[%clk 0:01:08.8]} 23. Nf3
{[%clk 0:01:36.7]} 23... Qd6 {[%clk 0:01:02]} 24. b4 {[%clk 0:01:32.9]} 24... a6
{[%clk 0:00:53.1]} 25. a4 {[%clk 0:01:31.7]} 25... Bh6 {[%clk 0:00:48.4]} 26.
Qh4 {[%clk 0:01:13.9]} 26... Bg7 {[%clk 0:00:46]} 27. Ng5 {[%clk 0:01:13.4]}
27... Qh6 {[%clk 0:00:40.8]} 28. Qg3 {[%clk 0:01:10]} 28... Qg6 {[%clk
0:00:34.6]} 29. b5 {[%clk 0:01:04.8]} 29... axb5 {[%clk 0:00:31.1]} 30. axb5
{[%clk 0:01:04.6]} 30... Ne5 {[%clk 0:00:29.7]} 31. Qe3 {[%clk 0:00:28]} 31...
h6 {[%clk 0:00:24.4]} 32. Nf3 {[%clk 0:00:23.8]} 32... Rd3 {[%clk 0:00:16.2]}
33. Qxd3 {[%clk 0:00:03.9]} 33... Nxd3 {[%clk 0:00:14.5]} 34. Re8+ {[%clk
0:00:04.8]} 34... Kh7 {[%clk 0:00:13.9]} 35. Rb8 {[%clk 0:00:05.7]} 35... Qb6
{[%clk 0:00:11.8]} 36. c4 {[%clk 0:00:04.7]} 36... Qxf2+ {[%clk 0:00:10.3]} 37.
Kh1 {[%clk 0:00:05.3]} 37... Nf4 {[%clk 0:00:09.7]} 38. Ne1 {[%clk 0:00:01.3]}
38... Qxe1+ {[%clk 0:00:08.5]} 39. Kh2 {[%clk 0:00:02.2]} 39... Qf2 {[%clk
0:00:08.2]} 40. Rh8+ {[%clk 0:00:01.3]} 40... Kxh8 {[%clk 0:00:07.4]} 41. h4
{[%clk 0:00:02.2]} 41... Qxg2# {[%clk 0:00:06.8]} 0-1

[Event "Early-Titled-Tuesday-Blitz-March-19-2024"]
[Site "Chess.com"]
[Date "2024.03.19"]
[Round "2"]
[White "zubridis"]
[Black "trriinu"]
[Result "1-0"]
[WhiteElo "2536"]
[BlackElo "2295"]
[TimeControl "180+1"]
[EndTime "8:18:21 PDT"]
[Termination "zubridis won on time"]

1. e4 {[%clk 0:03:00.4]} 1... d5 {[%clk 0:03:00.6]} 2. exd5 {[%clk 0:02:50.7]}
2... Qxd5 {[%clk 0:03:01.5]} 3. Nc3 {[%clk 0:02:48.1]} 3... Qd6 {[%clk
0:03:01.7]} 4. g3 {[%clk 0:02:48.6]} 4... Nf6 {[%clk 0:03:02.3]} 5. Bg2 {[%clk
0:02:48.2]} 5... Nc6 {[%clk 0:03:03]} 6. Nge2 {[%clk 0:02:48.6]} 6... Bg4 {[%clk
0:03:03.6]} 7. h3 {[%clk 0:02:48.6]} 7... Bh5 {[%clk 0:03:03.6]} 8. O-O {[%clk
0:02:47.7]} 8... e6 {[%clk 0:03:03.8]} 9. d3 {[%clk 0:02:44.3]} 9... O-O-O
{[%clk 0:03:01.9]} 10. b4 {[%clk 0:02:36.3]} 10... Nxb4 {[%clk 0:02:57.2]} 11.
g4 {[%clk 0:02:27.5]} 11... Bg6 {[%clk 0:02:56.6]} 12. Nf4 {[%clk 0:02:25.7]}
12... Qc5 {[%clk 0:02:46.6]} 13. Bd2 {[%clk 0:02:21.5]} 13... Bd6 {[%clk
0:02:30.8]} 14. Nxg6 {[%clk 0:01:27.5]} 14... hxg6 {[%clk 0:02:31.7]} 15. Rb1
{[%clk 0:01:27.9]} 15... Qe5 {[%clk 0:02:16.9]} 16. f4 {[%clk 0:01:19.3]} 16...
Qd4+ {[%clk 0:01:58.3]} 17. Kh1 {[%clk 0:01:19]} 17... Nbd5 {[%clk 0:01:50.5]}
18. Nb5 {[%clk 0:00:32.5]} 18... Qa4 {[%clk 0:01:49.5]} 19. c4 {[%clk
0:00:30.2]} 19... Qxd1 {[%clk 0:01:46.4]} 20. Rfxd1 {[%clk 0:00:28]} 20... Nb6
{[%clk 0:01:38.6]} 21. Nxa7+ {[%clk 0:00:19.4]} 21... Kb8 {[%clk 0:01:38.5]} 22.
Nb5 {[%clk 0:00:17.3]} 22... Nxg4 {[%clk 0:01:34.5]} 23. Kg1 {[%clk 0:00:14.8]}
23... Bc5+ {[%clk 0:01:30.1]} 24. d4 {[%clk 0:00:14.6]} 24... Rxd4 {[%clk
0:00:57.4]} 25. Nxd4 {[%clk 0:00:15.5]} 25... Bxd4+ {[%clk 0:00:57.4]} 26. Kf1
{[%clk 0:00:15]} 26... Nf2 {[%clk 0:00:44.4]} 27. Rdc1 {[%clk 0:00:09.1]} 27...
Nxh3 {[%clk 0:00:21.4]} 28. c5 {[%clk 0:00:09.1]} 28... Nd5 {[%clk 0:00:21.1]}
29. Rc4 {[%clk 0:00:08.7]} 29... Bf6 {[%clk 0:00:03.1]} 30. c6 {[%clk
0:00:06.6]} 30... b6 {[%clk 0:00:03]} 31. Rb3 {[%clk 0:00:06.3]} 31... Nhxf4
{[%clk 0:00:02.3]} 32. Bxf4 {[%clk 0:00:05.9]} 32... Nxf4 {[%clk 0:00:02.5]} 33.
Rxf4 {[%clk 0:00:06.8]} 33... Rd8 {[%clk 0:00:02.4]} 34. Ra4 {[%clk 0:00:06.1]}
34... Rd1+ {[%clk 0:00:02.5]} 35. Ke2 {[%clk 0:00:06.4]} 35... Rd6 {[%clk
0:00:01.6]} 36. Rba3 {[%clk 0:00:06.4]} 1-0

[Event "Early-Titled-Tuesday-Blitz-March-19-2024"]
[Site "Chess.com"]
[Date "2024.03.19"]
[Round "2"]
[White "LiadCuba"]
[Black "Matols"]
[Result "1-0"]
[WhiteElo "2568"]
[BlackElo "2345"]
[TimeControl "180+1"]
[EndTime "8:18:23 PDT"]
[Termination "LiadCuba won on time"]

1. d4 {[%clk 0:03:00.9]} 1... d5 {[%clk 0:02:59.5]} 2. c4 {[%clk 0:03:00.6]}
2... e6 {[%clk 0:02:59.8]} 3. Nc3 {[%clk 0:03:00.2]} 3... Nf6 {[%clk 0:03:00.2]}
4. Nf3 {[%clk 0:03:00]} 4... a6 {[%clk 0:02:57.8]} 5. cxd5 {[%clk 0:02:58.9]}
5... exd5 {[%clk 0:02:58.7]} 6. Bf4 {[%clk 0:02:58.9]} 6... Bd6 {[%clk
0:02:55.6]} 7. Qd2 {[%clk 0:02:57.6]} 7... Bf5 {[%clk 0:02:48.7]} 8. Rc1 {[%clk
0:02:54.2]} 8... c6 {[%clk 0:02:47.8]} 9. Ne5 {[%clk 0:02:51.2]} 9... O-O {[%clk
0:02:44.7]} 10. e3 {[%clk 0:02:45.2]} 10... Re8 {[%clk 0:02:39.9]} 11. Be2
{[%clk 0:02:21]} 11... Qe7 {[%clk 0:02:25.3]} 12. O-O {[%clk 0:02:08.3]} 12...
Nbd7 {[%clk 0:02:24.6]} 13. Nd3 {[%clk 0:02:06.4]} 13... Ne4 {[%clk 0:02:13.4]}
14. Nxe4 {[%clk 0:02:00.6]} 14... Bxe4 {[%clk 0:02:11.5]} 15. Bxd6 {[%clk
0:01:50.8]} 15... Qxd6 {[%clk 0:02:12.4]} 16. Nc5 {[%clk 0:01:51]} 16... Nxc5
{[%clk 0:02:09.8]} 17. Rxc5 {[%clk 0:01:51.9]} 17... Re6 {[%clk 0:01:51.4]} 18.
Bd3 {[%clk 0:01:33.6]} 18... Rh6 {[%clk 0:01:42.5]} 19. h3 {[%clk 0:01:32.9]}
19... Re8 {[%clk 0:01:32.8]} 20. Bxe4 {[%clk 0:01:21.6]} 20... Rxe4 {[%clk
0:01:33.7]} 21. Qb4 {[%clk 0:01:05.8]} 21... Qd7 {[%clk 0:01:15.4]} 22. Rfc1
{[%clk 0:00:52.4]} 22... Rxh3 {[%clk 0:01:03.3]} 23. Rxc6 {[%clk 0:00:27]} 23...
bxc6 {[%clk 0:00:33]} 24. gxh3 {[%clk 0:00:27]} 24... h5 {[%clk 0:00:22.7]} 25.
Qb8+ {[%clk 0:00:22.9]} 25... Kh7 {[%clk 0:00:21.3]} 26. Qg3 {[%clk 0:00:18.7]}
26... h4 {[%clk 0:00:15.8]} 27. Qf3 {[%clk 0:00:17.9]} 27... g6 {[%clk
0:00:10.8]} 28. Rc3 {[%clk 0:00:16.5]} 28... Kg7 {[%clk 0:00:10.4]} 29. Rb3
{[%clk 0:00:15.9]} 29... Qe6 {[%clk 0:00:09.5]} 30. Rb8 {[%clk 0:00:14.5]} 30...
Qd6 {[%clk 0:00:08.8]} 31. Rb7 {[%clk 0:00:12.8]} 31... Qe6 {[%clk 0:00:08.6]}
32. Kf1 {[%clk 0:00:11.2]} 32... c5 {[%clk 0:00:07.5]} 33. dxc5 {[%clk
0:00:10.9]} 33... Rc4 {[%clk 0:00:07.4]} 34. b4 {[%clk 0:00:07.6]} 34... Rc1+
{[%clk 0:00:07]} 35. Kg2 {[%clk 0:00:08.1]} 35... d4 {[%clk 0:00:06.6]} 36. exd4
{[%clk 0:00:06]} 36... Rc2 {[%clk 0:00:06.2]} 37. d5 {[%clk 0:00:05.8]} 1-0

[Event "Early-Titled-Tuesday-Blitz-March-19-2024"]
[Site "Chess.com"]
[Date "2024.03.19"]
[Round "2"]
[White "jup1978"]
[Black "ChessFanNM"]
[Result "1-0"]
[WhiteElo "2528"]
[BlackElo "2259"]
[TimeControl "180+1"]
[EndTime "8:18:26 PDT"]
[Termination "jup1978 won by resignation"]

1. e4 {[%clk 0:02:54.9]} 1... c6 {[%clk 0:02:58.9]} 2. Nf3 {[%clk 0:02:53.1]}
2... d5 {[%clk 0:02:49.5]} 3. Nc3 {[%clk 0:02:54]} 3... dxe4 {[%clk 0:02:48.9]}
4. Nxe4 {[%clk 0:02:54.9]} 4... Nf6 {[%clk 0:02:48.7]} 5. Qe2 {[%clk 0:02:52.4]}
5... Nxe4 {[%clk 0:02:41.6]} 6. Qxe4 {[%clk 0:02:53.3]} 6... Qd5 {[%clk
0:02:41.7]} 7. Qe3 {[%clk 0:02:30.3]} 7... Bg4 {[%clk 0:02:27.7]} 8. Be2 {[%clk
0:02:29.4]} 8... e6 {[%clk 0:02:27.5]} 9. d4 {[%clk 0:02:28.2]} 9... Nd7 {[%clk
0:02:15.2]} 10. O-O {[%clk 0:02:25.1]} 10... Nf6 {[%clk 0:02:14]} 11. c4 {[%clk
0:02:23.5]} 11... Qe4 {[%clk 0:02:10.3]} 12. b3 {[%clk 0:02:20.5]} 12... Be7
{[%clk 0:02:04.1]} 13. Bb2 {[%clk 0:02:18.7]} 13... O-O {[%clk 0:02:03.2]} 14.
Rfe1 {[%clk 0:02:17.8]} 14... Qxe3 {[%clk 0:02:03]} 15. fxe3 {[%clk 0:02:17.4]}
15... a5 {[%clk 0:02:03.1]} 16. Bd3 {[%clk 0:02:15.2]} 16... a4 {[%clk
0:01:58.5]} 17. Ne5 {[%clk 0:02:12.1]} 17... Bb4 {[%clk 0:01:54.2]} 18. Rf1
{[%clk 0:02:06.3]} 18... a3 {[%clk 0:01:53.3]} 19. Bc1 {[%clk 0:01:51.2]} 19...
Bh5 {[%clk 0:01:52.5]} 20. Rxf6 {[%clk 0:01:30.4]} 20... gxf6 {[%clk 0:01:51.1]}
21. Nd7 {[%clk 0:01:30.9]} 21... Bg6 {[%clk 0:01:28]} 22. Bxg6 {[%clk
0:01:25.1]} 22... hxg6 {[%clk 0:01:27.1]} 23. Nxf8 {[%clk 0:01:23.8]} 23... Kxf8
{[%clk 0:01:27.3]} 24. Kf2 {[%clk 0:01:21.7]} 24... f5 {[%clk 0:01:27]} 25. Ke2
{[%clk 0:01:20.2]} 25... Ke7 {[%clk 0:01:26.2]} 26. Bd2 {[%clk 0:01:20.4]} 26...
Bd6 {[%clk 0:01:14.7]} 27. h3 {[%clk 0:01:15.5]} 27... b5 {[%clk 0:01:13.3]} 28.
c5 {[%clk 0:01:15.1]} 28... Bc7 {[%clk 0:01:10.9]} 29. Bb4 {[%clk 0:01:09.8]}
29... e5 {[%clk 0:01:07.7]} 30. Rd1 {[%clk 0:01:07.3]} 30... exd4 {[%clk
0:01:06.8]} 31. exd4 {[%clk 0:01:07.1]} 31... Ke6 {[%clk 0:01:07.1]} 32. Kd3
{[%clk 0:01:00.6]} 32... Bd8 {[%clk 0:00:46.6]} 33. Re1+ {[%clk 0:00:59.1]}
33... Kd7 {[%clk 0:00:42.1]} 34. Re2 {[%clk 0:00:54.7]} 34... Bf6 {[%clk
0:00:41.8]} 35. Bd2 {[%clk 0:00:48.3]} 35... Rh8 {[%clk 0:00:37.3]} 36. Bf4
{[%clk 0:00:45.9]} 36... Rh4 {[%clk 0:00:28.2]} 37. Be5 {[%clk 0:00:46.3]} 37...
Be7 {[%clk 0:00:27.2]} 38. Bg3 {[%clk 0:00:43.6]} 38... Rh8 {[%clk 0:00:25.6]}
39. Bf4 {[%clk 0:00:42.2]} 39... Bf6 {[%clk 0:00:25.3]} 40. Be5 {[%clk
0:00:41.8]} 40... Bxe5 {[%clk 0:00:24]} 41. Rxe5 {[%clk 0:00:42.7]} 41... f6
{[%clk 0:00:21]} 42. Re3 {[%clk 0:00:41.1]} 42... g5 {[%clk 0:00:20.1]} 43. Rf3
{[%clk 0:00:40.9]} 43... f4 {[%clk 0:00:20.1]} 44. Rf2 {[%clk 0:00:39.8]} 44...
Re8 {[%clk 0:00:20.2]} 45. Re2 {[%clk 0:00:40]} 45... Re3+ {[%clk 0:00:19.2]}
46. Rxe3 {[%clk 0:00:39.1]} 46... fxe3 {[%clk 0:00:19.6]} 47. Kxe3 {[%clk
0:00:40]} 47... Ke6 {[%clk 0:00:19.7]} 48. g3 {[%clk 0:00:38.4]} 48... f5 {[%clk
0:00:17.6]} 49. h4 {[%clk 0:00:38.5]} 49... f4+ {[%clk 0:00:17.6]} 50. gxf4
{[%clk 0:00:38.6]} 50... gxh4 {[%clk 0:00:17.7]} 51. Kf3 {[%clk 0:00:38.8]}
51... Kf5 {[%clk 0:00:17.8]} 52. d5 {[%clk 0:00:39.3]} 52... cxd5 {[%clk
0:00:17.9]} 53. c6 {[%clk 0:00:40.2]} 53... Ke6 {[%clk 0:00:17.2]} 54. f5+
{[%clk 0:00:38.3]} 54... Kd6 {[%clk 0:00:17.1]} 55. f6 {[%clk 0:00:37.9]} 55...
d4 {[%clk 0:00:14.4]} 56. f7 {[%clk 0:00:37.8]} 56... Ke7 {[%clk 0:00:14.6]} 57.
c7 {[%clk 0:00:37.9]} 57... d3 {[%clk 0:00:13.2]} 58. c8=Q {[%clk 0:00:36.9]}
1-0

[Event "Early-Titled-Tuesday-Blitz-March-19-2024"]
[Site "Chess.com"]
[Date "2024.03.19"]
[Round "2"]
[White "FARIZA2018"]
[Black "KNVB"]
[Result "0-1"]
[WhiteElo "2579"]
[BlackElo "2826"]
[TimeControl "180+1"]
[EndTime "8:18:27 PDT"]
[Termination "KNVB won by resignation"]

1. e4 {[%clk 0:03:00.9]} 1... b6 {[%clk 0:02:59.6]} 2. d4 {[%clk 0:03:00.9]}
2... Bb7 {[%clk 0:02:59.6]} 3. Bd3 {[%clk 0:03:01.2]} 3... e6 {[%clk 0:02:59.8]}
4. Nf3 {[%clk 0:03:00.7]} 4... d5 {[%clk 0:03:00.2]} 5. e5 {[%clk 0:03:00.4]}
5... Ba6 {[%clk 0:03:00.2]} 6. Bxa6 {[%clk 0:02:58.3]} 6... Nxa6 {[%clk
0:03:01.1]} 7. O-O {[%clk 0:02:58.6]} 7... Qd7 {[%clk 0:03:01.2]} 8. Bf4 {[%clk
0:02:54.7]} 8... Ne7 {[%clk 0:02:59.2]} 9. Qe2 {[%clk 0:02:51.1]} 9... Nb8
{[%clk 0:02:58.9]} 10. Nbd2 {[%clk 0:02:47]} 10... Nbc6 {[%clk 0:02:49]} 11.
Rad1 {[%clk 0:02:41.8]} 11... Nf5 {[%clk 0:02:33.7]} 12. c3 {[%clk 0:02:41.5]}
12... Be7 {[%clk 0:02:33.2]} 13. Rfe1 {[%clk 0:02:39.3]} 13... Bd8 {[%clk
0:02:15.5]} 14. Nf1 {[%clk 0:02:37.9]} 14... Nce7 {[%clk 0:02:09.4]} 15. b3
{[%clk 0:02:35.7]} 15... Ng6 {[%clk 0:02:01.3]} 16. Bc1 {[%clk 0:02:34.5]} 16...
h5 {[%clk 0:02:00.9]} 17. c4 {[%clk 0:02:29.4]} 17... c6 {[%clk 0:01:35.8]} 18.
Ne3 {[%clk 0:02:27.8]} 18... Nge7 {[%clk 0:00:43.3]} 19. a4 {[%clk 0:02:15.9]}
19... Rc8 {[%clk 0:00:34]} 20. Ba3 {[%clk 0:02:14]} 20... Nxe3 {[%clk
0:00:34.4]} 21. fxe3 {[%clk 0:01:57.4]} 21... Nf5 {[%clk 0:00:35.3]} 22. e4
{[%clk 0:01:56.8]} 22... dxe4 {[%clk 0:00:36.2]} 23. Qxe4 {[%clk 0:01:56.9]}
23... Be7 {[%clk 0:00:37]} 24. Bxe7 {[%clk 0:01:54.5]} 24... Nxe7 {[%clk
0:00:37.8]} 25. Ng5 {[%clk 0:01:50.7]} 25... g6 {[%clk 0:00:29.5]} 26. Rf1
{[%clk 0:01:50.2]} 26... Nf5 {[%clk 0:00:29.4]} 27. d5 {[%clk 0:01:39.5]} 27...
cxd5 {[%clk 0:00:28.4]} 28. cxd5 {[%clk 0:01:39.9]} 28... exd5 {[%clk
0:00:20.5]} 29. Rxd5 {[%clk 0:01:40.2]} 29... Qe7 {[%clk 0:00:21.1]} 30. Nh3
{[%clk 0:01:11.2]} 30... O-O {[%clk 0:00:10.9]} 31. Rd3 {[%clk 0:01:02.3]} 31...
Ng7 {[%clk 0:00:04.8]} 32. Rdf3 {[%clk 0:00:58.3]} 32... Rc5 {[%clk 0:00:03.1]}
33. Re1 {[%clk 0:00:49.9]} 33... Re8 {[%clk 0:00:03.1]} 34. Qf4 {[%clk
0:00:48.9]} 34... Ne6 {[%clk 0:00:02.2]} 35. Qg3 {[%clk 0:00:48.3]} 35... Nd4
{[%clk 0:00:02.2]} 36. Rd3 {[%clk 0:00:40.1]} 36... Nf5 {[%clk 0:00:02.2]} 37.
Qf4 {[%clk 0:00:33.2]} 37... Rxe5 {[%clk 0:00:02.8]} 38. Rf1 {[%clk 0:00:28.3]}
38... Re1 {[%clk 0:00:03.2]} 39. Rf3 {[%clk 0:00:27.8]} 39... Rxf1+ {[%clk
0:00:03.7]} 40. Rxf1 {[%clk 0:00:27.9]} 40... Qe3+ {[%clk 0:00:04.3]} 41. Qxe3
{[%clk 0:00:28]} 41... Rxe3 {[%clk 0:00:05.2]} 42. Rb1 {[%clk 0:00:26.2]} 42...
Nd4 {[%clk 0:00:05.2]} 43. b4 {[%clk 0:00:26.4]} 43... Rb3 {[%clk 0:00:05.3]}
44. Rd1 {[%clk 0:00:22]} 44... Rxb4 {[%clk 0:00:05.2]} 45. Ra1 {[%clk
0:00:19.7]} 45... a5 {[%clk 0:00:04.8]} 46. Kf2 {[%clk 0:00:19.2]} 46... Kf8
{[%clk 0:00:05.1]} 47. Nf4 {[%clk 0:00:19.3]} 47... Nb3 {[%clk 0:00:04.7]} 48.
Ra3 {[%clk 0:00:19]} 48... Rxf4+ {[%clk 0:00:04.9]} 0-1

[Event "Early-Titled-Tuesday-Blitz-March-19-2024"]
[Site "Chess.com"]
[Date "2024.03.19"]
[Round "2"]
[White "BallottiLuca"]
[Black "nekotyanof"]
[Result "0-1"]
[WhiteElo "2403"]
[BlackElo "2646"]
[TimeControl "180+1"]
[EndTime "8:18:29 PDT"]
[Termination "nekotyanof won by checkmate"]

1. e4 {[%clk 0:03:00.9]} 1... c5 {[%clk 0:02:56.9]} 2. Nf3 {[%clk 0:03:00.2]}
2... Nc6 {[%clk 0:02:57.5]} 3. d4 {[%clk 0:02:59.5]} 3... cxd4 {[%clk
0:02:58.4]} 4. Nxd4 {[%clk 0:03:00.2]} 4... Nf6 {[%clk 0:02:59]} 5. Nc3 {[%clk
0:02:57.4]} 5... e5 {[%clk 0:02:59.5]} 6. Ndb5 {[%clk 0:02:55.6]} 6... d6 {[%clk
0:02:59.9]} 7. Bg5 {[%clk 0:02:54.4]} 7... a6 {[%clk 0:02:59.9]} 8. Na3 {[%clk
0:02:53.5]} 8... b5 {[%clk 0:03:00.4]} 9. Nd5 {[%clk 0:02:52.5]} 9... Be7 {[%clk
0:03:00.7]} 10. Bxf6 {[%clk 0:02:51.6]} 10... Bxf6 {[%clk 0:03:00.6]} 11. c3
{[%clk 0:02:51.2]} 11... Rb8 {[%clk 0:03:00.5]} 12. Nc2 {[%clk 0:02:49.7]} 12...
Bg5 {[%clk 0:03:00.5]} 13. a4 {[%clk 0:02:47.8]} 13... bxa4 {[%clk 0:03:00.7]}
14. Ncb4 {[%clk 0:02:44.3]} 14... Nxb4 {[%clk 0:03:01.1]} 15. Nxb4 {[%clk
0:02:41.1]} 15... Bd7 {[%clk 0:03:01.6]} 16. Bxa6 {[%clk 0:02:36.5]} 16... O-O
{[%clk 0:02:41.7]} 17. O-O {[%clk 0:02:35.8]} 17... Qb6 {[%clk 0:02:34.4]} 18.
Bd3 {[%clk 0:02:35.3]} 18... Ra8 {[%clk 0:02:25.7]} 19. Ra3 {[%clk 0:02:33.8]}
19... g6 {[%clk 0:02:14]} 20. Qe2 {[%clk 0:02:26.6]} 20... Rfb8 {[%clk
0:02:11.6]} 21. g3 {[%clk 0:02:20.6]} 21... h5 {[%clk 0:02:03.7]} 22. h4 {[%clk
0:02:18.9]} 22... Bd8 {[%clk 0:01:57.8]} 23. Rd1 {[%clk 0:02:18.8]} 23... Bg4
{[%clk 0:01:55.7]} 24. Qf1 {[%clk 0:02:13.9]} 24... Bxd1 {[%clk 0:01:54.6]} 25.
Qxd1 {[%clk 0:02:14.8]} 25... Qc5 {[%clk 0:01:51.5]} 26. Rxa4 {[%clk 0:02:10.5]}
26... Rxa4 {[%clk 0:01:49.2]} 27. Qxa4 {[%clk 0:02:11.4]} 27... Bb6 {[%clk
0:01:49.3]} 28. Qc2 {[%clk 0:02:06.7]} 28... Ra8 {[%clk 0:01:46.6]} 29. Na6
{[%clk 0:02:04.6]} 29... Qa5 {[%clk 0:01:44.7]} 30. Qe2 {[%clk 0:01:53.8]} 30...
Kg7 {[%clk 0:01:40.2]} 31. Kg2 {[%clk 0:01:54]} 31... d5 {[%clk 0:01:38.7]} 32.
exd5 {[%clk 0:01:50.8]} 32... e4 {[%clk 0:01:02]} 33. Qxe4 {[%clk 0:01:23.5]}
33... Rxa6 {[%clk 0:01:01.7]} 34. Qe5+ {[%clk 0:01:20.8]} 34... Kg8 {[%clk
0:00:56.2]} 35. Qe8+ {[%clk 0:01:19]} 35... Kg7 {[%clk 0:00:56.8]} 36. Qe5+
{[%clk 0:01:19.1]} 36... Kh7 {[%clk 0:00:57.5]} 37. Bxa6 {[%clk 0:01:15.4]}
37... Qxa6 {[%clk 0:00:57.7]} 38. d6 {[%clk 0:01:08]} 38... Qb7+ {[%clk
0:00:54]} 39. Kh2 {[%clk 0:00:57.9]} 39... Bxf2 {[%clk 0:00:47.2]} 40. Qf4
{[%clk 0:00:56.2]} 40... Ba7 {[%clk 0:00:41.6]} 41. b4 {[%clk 0:00:53.2]} 41...
Kg8 {[%clk 0:00:30.9]} 42. Qf6 {[%clk 0:00:50]} 42... Qb6 {[%clk 0:00:28]} 43.
Kh3 {[%clk 0:00:11.5]} 43... Qc6 {[%clk 0:00:27.2]} 44. Qd8+ {[%clk 0:00:08.4]}
44... Kg7 {[%clk 0:00:26.6]} 45. Kh2 {[%clk 0:00:08.5]} 45... Qf3 {[%clk
0:00:23.1]} 46. d7 {[%clk 0:00:04.4]} 46... Qf2+ {[%clk 0:00:23]} 47. Kh3 {[%clk
0:00:03.9]} 47... Qf1+ {[%clk 0:00:23.9]} 48. Kh2 {[%clk 0:00:04]} 48... Bg1+
{[%clk 0:00:24.5]} 49. Kh1 {[%clk 0:00:04.4]} 49... Bf2+ {[%clk 0:00:25.4]} 50.
Kh2 {[%clk 0:00:04.9]} 50... Qg1+ {[%clk 0:00:26.3]} 51. Kh3 {[%clk 0:00:05.6]}
51... Qxg3# {[%clk 0:00:27.1]} 0-1